Cogmind - Beta 10.1 @@@ ROGUE MODE // 2020.11.09 @ 15:01:53 Player: error404 Result: Destroyed by D-53 Grenadier with Mini Grenade Launcher Performance ------------- Evolutions (0) 0 Regions Visited (4) 800 Robots Destroyed (17) 85 Value Destroyed (437) 437 Prototype IDs (0) 0 Alien Tech Used (0) 0 Bonus (25) 25 TOTAL SCORE: 1347 Bonus ------- Follower Combat Kills 25 Cogmind --------- Core Integrity 0/250 Matter 199/300 Energy 270/290 System Corruption 0% Temperature Cool (7) Movement Treading (180) Ox1 Location -9/Mines Parts ------- > --- POWER (1) -------- Reinforced Deuterium Engine > --- PROPULSION (2) --- Medium Treads Compact Wheel > --- UTILITY (2) ------ Large Storage Unit Power Shielding > --- WEAPON (2) ------- Grenade Launcher > --- INVENTORY (10) --- Core Analyzer Power Shielding Beam Rifle Grenade Launcher Remote Datajack Peak State ------------ > --- POWER ------------ Reinforced Deuterium Engine > --- PROPULSION ------- Compact Wheel Compact Wheel > --- UTILITY ---------- Large Storage Unit Improved Medium Armor Plating > --- WEAPON ----------- Particle Cannon Advanced Assault Cannon > --- INVENTORY -------- Medium Treads Core Analyzer Power Shielding Power Shielding Beam Rifle Assault Rifle Light Cannon Grenade Launcher Grenade Launcher Remote Datajack [Rating: 19] Favorites ----------- Power Light Nuclear Core Engine Ion Engine Power Core Light Nuclear Core Propulsion Light Treads Treads Light Treads Leg Aluminum Leg Wheel Compact Wheel Utility Large Storage Unit Device Improved Heat Sink Storage Large Storage Unit Protection Improved Medium Armor Plating Weapon Assault Rifle Energy Gun EM Pulse Gun Energy Cannon Particle Cannon Ballistic Gun Assault Rifle Ballistic Cannon Light Cannon Build | -11 -10 -10 -10 -9 ------- Run | Scr Mat Min Exi Min Slots Evolved . | . . . . . Power . | . . . . . Propulsion . | . . . . . Utility . | . . . . . Weapon . | . . . . . Parts Attached 31 | 6 11 . . 14 Power 4 | 1 1 . . 2 Engine 3 | 1 . . . 2 Core 1 | . 1 . . . Reactor . | . . . . . Propulsion 6 | 2 . . . 4 Treads 3 | 2 . . . 1 Leg 1 | . . . . 1 Wheel 2 | . . . . 2 Hover . | . . . . . Flight . | . . . . . Utility 6 | 1 3 . . 2 Device 2 | . 2 . . . Storage 2 | 1 1 . . . Processor . | . . . . . Hackware . | . . . . . Protection 2 | . . . . 2 Artifact . | . . . . . Weapon 15 | 2 7 . . 6 Energy Gun 6 | 2 4 . . . Energy Cannon 1 | . . . . 1 Ballistic Gun 3 | . 2 . . 1 Ballistic Cannon 4 | . 1 . . 3 Launcher 1 | . . . . 1 Special Weapon . | . . . . . Impact Weapon . | . . . . . Slashing Weapon . | . . . . . Piercing Weapon . | . . . . . Special Melee Weapon . | . . . . . Unidentified Prototypes . | . . . . . Parts Lost 12 | . 5 . . 7 Power 1 | . . . . 1 Propulsion 3 | . . . . 3 Utility 2 | . 1 . . 1 Weapon 6 | . 4 . . 2 Highest Loss Streak 5 | . 5 . . 4 Average Slot Usage (%) 96 | . 95 100 100 81 Engine 3 | . 11 . . 7 Core 9 | . 2 14 14 2 Treads 25 | . 28 28 28 5 Wheel 1 | . . . . 13 Device 13 | . 11 14 14 11 Storage 14 | . 14 14 14 14 Energy Gun 4 | . 21 . . . Ballistic Gun 20 | . 4 28 28 8 Ballistic Cannon 1 | . . . . 9 Naked Turns . | . . . . . Heaviest Build 47 | 13 28 25 25 47 Greatest Support 40 | 40 40 40 40 40 Greatest Overweight (x) 6 | . . . . 6 Average Overweight (x) . | . . . . . Largest Inventory Capacity 10 | 6 10 10 10 10 Average Capacity 9 | 5 7 10 10 10 Most Carried 10 | 6 10 9 9 10 Average Carried 8 | 3 6 8 9 7 Final Capacity 10 | 6 10 10 10 10 Final Carried 9 | 6 8 9 9 5 Class Distribution -------------------- 96% | Mutant 3% | Scavenger-Mutant Dominant Class ---------------- Mutant | -10/Materials Mutant | -10/Mines Mutant | -10/Exiles Mutant | -9/Mines Resources | -11 -10 -10 -10 -9 ----------- Run | Scr Mat Min Exi Min Matter Collected 530 | 246 137 . . 147 Remotely . | . . . . . Salvage Created 623 | . 328 . . 295 Parts 31 | . 20 . . 11 Haulers Intercepted . | . . . . . Recyclers Shooed 2 | . 1 . . 1 Parts Field Recycled . | . . . . . Retrieved Matter . | . . . . . Parts Self-Destructed . | . . . . . Prevented . | . . . . . Kills | -11 -10 -10 -10 -9 ------- Run | Scr Mat Min Exi Min Combat Hostiles Destroyed 14 | . 9 . . 5 Guns 7 | . 5 . . 2 Cannons 7 | . 4 . . 3 Classes Destroyed 6 | . 3 . . 3 Recycler 2 | . . . . 2 Watcher 1 | . 1 . . . Swarmer 3 | . 3 . . . Grunt 9 | . 6 . . 3 Duelist 1 | . . . . 1 Assembled 1 | . . . . 1 Best Kill Streak 4 | . 4 . . 2 Combat Bots Only 4 | . 4 . . 2 Max Kills in Single Turn 1 | . 1 . . 1 Gunslinging . | . . . . . Exploded . | . . . . . Melee . | . . . . . Uniques/NPCs Destroyed . | . . . . . Combat | -11 -10 -10 -10 -9 -------- Run | Scr Mat Min Exi Min Damage Taken 1885 | . 652 . . 1233 Core 252 | . 65 . . 187 Absorbed by Shields . | . . . . . Core Remaining (%) 100 | 100 . . . . Volleys Fired 64 | . 37 . . 27 Largest 2 | . 2 . . 2 Hottest 112 | . 112 . . 103 Shots Fired 103 | . 59 . . 44 Gun 77 | . 52 . . 25 Cannon 26 | . 7 . . 19 Launcher . | . . . . . Special . | . . . . . Kinetic 50 | . 7 . . 43 Thermal 30 | . 29 . . 1 Explosive . | . . . . . Electromagnetic 23 | . 23 . . . Robot Hit Streak 10 | . 8 . . 10 Robot Miss Streak 4 | . 4 . . 2 Penetration Max . | . . . . . Secondary Targets 2 | . 2 . . . Max Gunslinging Chain 1 | . 1 . . . Shots Hit Robots 67 | . 36 . . 31 Core Hits 26 | . 14 . . 12 Critical Hits . | . . . . . Critical Kills . | . . . . . Critical Parts Destroyed . | . . . . . Melee Attacks . | . . . . . Impact . | . . . . . Slashing . | . . . . . Piercing . | . . . . . Sneak Attacks . | . . . . . Combat Hostiles . | . . . . . Follow-up Attacks . | . . . . . Damage Inflicted 937 | . 529 . . 408 Guns 589 | . 427 . . 162 Cannons 346 | . 102 . . 244 Explosions . | . . . . . Melee . | . . . . . Ramming 2 | . . . . 2 Kinetic 487 | . 102 . . 385 Thermal 238 | . 217 . . 21 Explosive . | . . . . . Electromagnetic 210 | . 210 . . . Impact . | . . . . . Slashing . | . . . . . Piercing . | . . . . . Highest Corruption . | . . . . . Average Corruption . | . . . . . Corruption Purged . | . . . . . Overload Shots . | . . . . . Overflow Damage . | . . . . . Projectiles . | . . . . . Explosions . | . . . . . Melee . | . . . . . Knockbacks . | . . . . . Impact . | . . . . . Kinetic . | . . . . . Secondary . | . . . . . Self-Inflicted Damage . | . . . . . Shots . | . . . . . Rammed 2 | . . . . 2 Targets Rammed 2 | . . . . 2 Kicked . | . . . . . Crushed . | . . . . . Highest Temperature 304 | . 304 . . 138 Average Temperature 127 | . 151 . . 59 Received Heat Transfer 255 | . 213 . . 42 Effects 1 | . 1 . . . Energy Bleed 1 | . 1 . . . Siege Activations . | . . . . . Robots Corrupted . | . . . . . Combat Hostiles . | . . . . . Parts Fried . | . . . . . Impact Corruptions . | . . . . . Robots Melted . | . . . . . Combat Hostiles . | . . . . . Parts Melted 2 | . 2 . . . Heat Transferred 629 | . 592 . . 37 Parts Sabotaged . | . . . . . Parts Stolen . | . . . . . Parts Stripped . | . . . . . Power Chain Reactions . | . . . . . Missiles Intercepted . | . . . . . Alert | -11 -10 -10 -10 -9 ------- Run | Scr Mat Min Exi Min Peak Influence 137 | . 137 53 . 113 Initial 53 | . . 53 . . Average 42 | . 51 47 . 32 Maximum Alert Level . | . . . . . Low Security (%) 100 | 100 100 100 . 100 Level 1 . | . . . . . Level 2 . | . . . . . Level 3 . | . . . . . Level 4 . | . . . . . Level 5 . | . . . . . High Security . | . . . . . Max Security . | . . . . . Squads Dispatched 1 | . . . . 1 Investigation 1 | . . . . 1 Extermination . | . . . . . Reinforcement . | . . . . . Assault . | . . . . . Garrison . | . . . . . Intercept . | . . . . . Construction Impeded . | . . . . . Haulers Reinforced . | . . . . . Stealth | -11 -10 -10 -10 -9 --------- Run | Scr Mat Min Exi Min Distress Signals 2 | . 2 . . . Communications Jammed . | . . . . . Distress Signals . | . . . . . Times Spotted 27 | . 15 . . 12 Peak Tracking Total 7 | . 7 . . 5 Tactical Retreats 3 | . 2 . . 1 Traps | -11 -10 -10 -10 -9 ------- Run | Scr Mat Min Exi Min Traps Triggered . | . . . . . Indirectly . | . . . . . Trap Hack Attempts . | . . . . . Triggered . | . . . . . Disarmed 1 | . 1 . . . Reprogrammed . | . . . . . Reused . | . . . . . Traps Extracted . | . . . . . Installed . | . . . . . Triggered . | . . . . . Machines | -11 -10 -10 -10 -9 ---------- Run | Scr Mat Min Exi Min Machines Disabled . | . . . . . Max in Single Turn . | . . . . . Machines Sabotaged . | . . . . . Garrisons Compromised . | . . . . . Overloaded Fab Kills . | . . . . . Fab Network Shutdowns . | . . . . . Hacking | -11 -10 -10 -10 -9 --------- Run | Scr Mat Min Exi Min Machines Accessed 7 | . 2 . 4 1 Terminals 2 | . 2 . . . Fabricators . | . . . . . Repair Stations . | . . . . . Recycling Units . | . . . . . Scanalyzers . | . . . . . Garrison Access . | . . . . . Total Hacks 58 | . 8 . 49 1 Successful 54 | . 4 . 49 1 Failed 4 | . 4 . . . Catastrophic . | . . . . . Database Lockouts . | . . . . . Manual . | . . . . . Terminals 8 | . 8 . . . Fabricators . | . . . . . Repair Stations . | . . . . . Recycling Units . | . . . . . Scanalyzers . | . . . . . Garrison Access . | . . . . . Terminal Hacks 54 | . 4 . 49 1 Record 52 | . 3 . 49 . Open Door 1 | . . . . 1 Disarm Traps 1 | . 1 . . . Fabricator Hacks . | . . . . . Repair Station Hacks . | . . . . . Recycling Unit Hacks . | . . . . . Scanalyzer . | . . . . . Garrison Access Hacks . | . . . . . Unauthorized Hacks . | . . . . . Terminals . | . . . . . Fabricators . | . . . . . Repair Stations . | . . . . . Recycling Units . | . . . . . Scanalyzers . | . . . . . Garrison Access . | . . . . . Data Cores Recovered . | . . . . . Used . | . . . . . Hacking Detections 2 | . 2 . . . Full Trace Events 1 | . 1 . . . Feedback Events . | . . . . . Feedback Blocked . | . . . . . Robot Schematics Acquired . | . . . . . Robots Built . | . . . . . Matter . | . . . . . Time . | . . . . . Total Robot Build Rating . | . . . . . Part Schematics Acquired . | . . . . . Parts Built . | . . . . . Matter . | . . . . . Time . | . . . . . Total Part Build Rating . | . . . . . Parts Repaired . | . . . . . Time . | . . . . . Parts Recycled . | . . . . . Recycled Matter . | . . . . . Retrieved Matter . | . . . . . Retrieved Components . | . . . . . Parts Scanalyzed . | . . . . . Part Schematics Acquired . | . . . . . Parts Damaged . | . . . . . Bothacking | -11 -10 -10 -10 -9 ------------ Run | Scr Mat Min Exi Min Used RIF Installer . | . . . . . Robots Hacked . | . . . . . Non-combat . | . . . . . Combat . | . . . . . Robot Hacks Applied . | . . . . . Relay Couplers Released . | . . . . . Robots Rewired . | . . . . . Allies Hacked . | . . . . . Hacks Repelled . | . . . . . Allies | -11 -10 -10 -10 -9 -------- Run | Scr Mat Min Exi Min Total Allies 3 | . . . . 3 Largest Group 3 | . . . . 3 Highest-Rated Group 40 | . . . . 40 Highest-Rated Ally 16 | . . . . 16 Total Orders . | . . . . . Ally Attacks 14 | . . . . 14 Total Damage 115 | . . . . 115 Kills 3 | . . . . 3 Allies Corrupted . | . . . . . Allies Melted . | . . . . . Intel | -11 -10 -10 -10 -9 ------- Run | Scr Mat Min Exi Min Robot Analysis Total . | . . . . . Derelict Logs Recovered 2 | . . 1 . 1 Drone Launches . | . . . . . Drone Recoveries . | . . . . . Exploration | -11 -10 -10 -10 -9 ------------- Run | Scr Mat Min Exi Min Turns Passed 3167 | 118 686 442 1521 400 Spaces Moved 1851 | 68 346 272 950 215 Core 26 | 7 . . . 19 Treads 1670 | 61 346 272 950 41 Legs 14 | . . . . 14 Wheels 141 | . . . . 141 Hover . | . . . . . Flight . | . . . . . Fastest Speed 50 | 50 160 160 160 100 Average Speed 156 | 148 160 160 160 136 Slowest Speed 350 | 160 160 160 160 350 Overloaded Moves . | . . . . . Propulsion Burnouts . | . . . . . Robots Hopped . | . . . . . Cave-ins Triggered . | . . . . . Exploration Rate (%) 48 | 4 39 69 93 38 Regions Visited 4 Branch Regions 3 Pre-discovered Areas 1 | . . . 1 . Known Exits Taken . | . . . . . Unknown Exits Taken 4 | 1 1 1 1 . Scrap Searched . | . . . . . Spaces Dug . | . . . . . Terrain Destroyed 3 | . . . . 3 Melee . | . . . . . Projectile 3 | . . . . 3 AOE . | . . . . . Terrain Rammed . | . . . . . Walls Destroyed . | . . . . . Machines Disabled . | . . . . . Actions | -11 -10 -10 -10 -9 --------- Run | Scr Mat Min Exi Min Total 2018 | 85 423 279 951 280 Wait 9 | . . 7 2 . Move 1847 | 67 345 271 949 215 Hop . | . . . . . Pick Up 43 | 12 19 1 . 11 Fast Attach . | . . . . . Attach 23 | 6 7 . . 10 Detach 2 | . . . . 2 Swap 8 | . 4 . . 4 Drop 20 | . 11 . . 9 Fire 64 | . 37 . . 27 Melee . | . . . . . Ram 2 | . . . . 2 Kick . | . . . . . Crush . | . . . . . Escape Stasis . | . . . . . Rewire . | . . . . . Trap . | . . . . . Miscellaneous . | . . . . . Route ------- -11/Scrapyard -10/Materials (discovered 2 exits: [*Min x2]) -10/Mines -10/Exiles (discovered 2 exits: *Min x2) -9/Mines History --------- Turn | Location | Event 9 | -11/Scrapyard | Discovered new exit (range 16) 119 | -11/Scrapyard | Entered Materials 182 | -10/Materials | Discovered new exit (range 10) 303 | -10/Materials | Build established: Mutant 453 | -10/Materials | Discovered new exit (range 11) 690 | -10/Materials | Lost 5 parts (1u4w) 805 | -10/Materials | Entered Mines 818 | -10/Mines | Learned Materials terminal intel 934 | -10/Mines | YI-UF0 nonchalantly dropped a Grenade Launcher on the ground 1239 | -10/Mines | Deemed a non-threat by the Exiles lab entrance 1239 | -10/Mines | Discovered new exit (range 5) 1247 | -10/Mines | Entered Exiles 1292 | -10/Exiles | Met 8R-AWN 1318 | -10/Exiles | Met EX-HEX 1485 | -10/Exiles | Met EX-BIN 1566 | -10/Exiles | Met EX-DEC 1613 | -10/Exiles | Learned location of Zion (-7) 1725 | -10/Exiles | Discovered new exit (range 14) 2076 | -10/Exiles | Visited The Gauntlet 2573 | -10/Exiles | Discovered new exit (range 15) 2768 | -10/Exiles | Entered Mines 2878 | -9/Mines | Lost 3 parts (1p2n) 2984 | -9/Mines | Learned location of 1 exit from Lower Caves 3019 | -9/Mines | Assisted by bots powering up and referring to "LRC-V3" 3053 | -9/Mines | Assembled infested the area 3072 | -9/Mines | Met a Derelict shopkeep closing up shop 3144 | -9/Mines | Core integrity fell below 50% 3156 | -9/Mines | Core integrity fell below 20% 3168 | -9/Mines | Destroyed by D-53 Grenadier with Mini Grenade Launcher Last Messages --------------- 03143_ K-01 Serf destroyed. 03143_ Mercenary 2a destroyed. 03143_ G-34 Mercenary destroyed. 03144_ K-01 Serf collects debris. 03146_ G-34 Mercenary destroyed. 03149_ The unstable cave ceiling collapses. 03149_ Trooper 2a destroyed. 03151_ Com. Wheel destroyed. 03152_ The unstable cave ceiling collapses. 03154_ K-01 Serf collects debris. 03155_ Imp. Medium Armor Plating destroyed. 03155_ Trooper 2b destroyed. 03156_ The unstable cave ceiling collapses. 03157_ Aluminum Leg crushed. 03157_ K-01 Serf collects debris. 03159_ The unstable cave ceiling collapses. 03159_ Assault Rifle destroyed. 03161_ The unstable cave ceiling collapses. 03161_ Adv. Assault Cannon destroyed. 03162_ The unstable cave ceiling collapses. Map ----- +----------------------------------------------------+ | | | | | | | | | | | | | | | | | | | | | | | | | | | | | | | | | | | | | | | | | ??????????????????##########?????????????????????? | | ################### ##????????????????????? | | "## # #????????????????????? | | ] #X # # #????????????????????? | | ] ## ######???????????????? | | <@ #???????????????? | | # # ### #???????????????? | | "## # # #???????????????????? | | ##### # # d# ##???????????????????? | | ????# ## # * ##????????????????????? | | ????#### #"######## %# #?????????????????????? | | ???????# ###??????## [* #?????????????????????? | | ???????#%#?????????##=%%# ##?????????????????????? | | ???????# #?????????? #" ###??????????????????????? | | ???????# #????????? # #????????????????????????? | | ???????# #?????????# ## ????????????????????????? | | ???????# #?????????? ? ????????????????????????? | | ???????# #??????????#? ????????????????????????? | | ????#### #?????????? ? %????????????????????????? | | ???## #?????????? ? ???????????????????????? | | ??## #??????????#?###????????????????????????? | | ??# ###???????????????????????????????????????? | | ??# #?????????????????????????????????????????? | | ??## ##????????????????????????????????????????? | | ???# #????????????????????????????????????????? | | ???# ##???????????????????????????????????????? | | ??## #???????????????????????????????????????? | | ??# ##??????????????????????????????????????? | | ?## ## #??####?????????????????????????????? | | ?# #?## ##????###?????????????????????? | +----------------------------------------------------+ Best States ------------- Heat Dissipation 25 Energy Generation 16 Energy Capacity 290 Matter Stores 300 Matter Capacity 300 Sight Range 16 Terrain Scan Density 10 Armor Coverage 225 Power Shielding 33 Evasion (%) 40 Recoil Reduction 2 Item Schematics ----------------- None Robot Schematics ------------------ None Fabricated ------------ Nothing Alien Tech Used ----------------- None Achievements -------------- None Challenges ------------ None Game ------ Seed WaveHoverGravjet Manual? 0 Play Time 00:41:38 Cumulative 24.3 hours Start 2020.11.09 @ 14:14:55 End 2020.11.09 @ 15:01:53 Sessions 1 Manual Loads 0 Difficulty Rogue Special Mode None Game No. 21 Rogue 8 Adventurer 13 Explorer 0 Win Type - Total 0 Types 0/0/0/0/0/0/0/0/0 Lore% 19 Gallery% 22 Achievement% 16 Wizard Run 0 Options --------- ASCII 0 Keyboard 0 Movement Numpad Keybinds 0 Fullscreen 0 Font 16/SmallcapsGlow Map View 76x50 Tactical HUD 1 Map Filters NONE Filters NONE Steam 1 RUN: 77de9391-f918-42f4-93c6-9ec10990c356